Cogmind - Beta 14 --- EXPLORER MODE // 2024.11.05 @ 13:04:57 Player: mrjoebobfred Result: Escaped! Performance ------------- Evolutions (9) 4500 Regions Visited (25) 5000 Robots Destroyed (262) 1310 Value Destroyed (9634) 9634 Prototype IDs (95) 1900 Alien Tech Used (0) 0 Bonus (23199) 23199 TOTAL SCORE: 45543 Bonus ------- Devolution 7500 Triggered Max Security 1000 High Alert Combat Kills 854 Follower Combat Kills 770 Entered Garrisons 400 Used RIF Installer 1000 Entered DSFs 500 Network Hubs Disabled 400 Aligned with FarCom 300 Built Enhanced Grunts 300 A7 Reached Mainframe 300 Win 3000 Challenge Win 7000 Friendly Fire -125 Cogmind --------- Core Integrity 741/800 Matter 300/300 Energy 149/150 System Corruption 0% Temperature Cool (2) Movement Flying (42) Location To Epsilon Eridani Parts ------- > --- POWER (1) -------- Micro Antimatter Reactor > --- PROPULSION (4) --- Impulse Thruster Array Impulse Thruster Array > --- UTILITY (6) ------ Structural Scanner Improved Cloaking Device Experimental Utility Shielding Advanced Hacking Suite Advanced Hacking Suite Relay Coupler [NC] (1) > --- WEAPON (1) ------- Plasma Sword > --- INVENTORY (5) ---- Experimental Cooling System Centrium Medium Armor Plating Railgun Long-range Missile Launcher Peak State ------------ > --- POWER ------------ Light Fission Core > --- PROPULSION ------- Cooled VTOL Module Cooled Nuclear Pulse Thruster Cooled Nuclear Pulse Thruster Cooled Nuclear Pulse Thruster Cooled Nuclear Pulse Thruster Cooled Nuclear Pulse Thruster > --- UTILITY ---------- Power Amplifier Experimental Cooling System Medium Storage Unit Structural Scanner Experimental Propulsion Shielding Experimental Utility Shielding Improved System Shield Relay Coupler [NC] > --- WEAPON ----------- Improved Remote Datajack Longsword +1 > --- INVENTORY -------- Light Fission Core Cooled Cesium-ion Thruster Gravity Neutralizer Advanced Transmission Jammer Reaction Control System Experimental Propulsion Shielding Experimental Utility Shielding Advanced Hacking Suite Advanced Hacking Suite Long-range Missile Launcher [Rating: 97] Favorites ----------- Power Cooled Ion Engine Engine Cooled Ion Engine Power Core Light Fission Core Reactor Light Quantum Reactor Propulsion Cooled Nuclear Pulse Thruster Treads Light Treads Wheel Wheel Flight Unit Cooled Nuclear Pulse Thruster Utility Hacking Suite Device Improved Heat Sink Storage Medium Storage Unit Processor Targeting Computer Hackware Hacking Suite Protection Light Armor Plating Weapon Enhanced Autogun Energy Gun Backup Laser III Energy Cannon Proton Cannon Ballistic Gun Enhanced Autogun Launcher Heavy Rocket Launcher Special Weapon Remote Datajack Slashing Weapon Longsword +1 Special Melee Weapon Advanced Datajack Build | -11 -10 -10 -10 -9 -8 -8 -8 -8 -7 -7 -7 -6 -6 -6 -5 -5 -4 -4 -4 -4 -4 -3 -2 -2 -1 ------- Run | Yrd Mat Min Exi Min Mat Gar Mat Gar Fac Was Fac Fac Was Fac Fac DSF Fac Ext Cet Arc Hub Res Res Tes Acc Slots Evolved -8 | . 1 . . . -2 . . . -1 . . -1 . . -1 . -1 . . . . -1 -1 . -1 Power . | . . . . . . . . . . . . . . . . . . . . . . . . . . Propulsion -3 | . . . . . -1 . . . . . . . . . -1 . . . . . . -1 . . . Utility -2 | . 1 . . . -1 . . . . . . . . . . . -1 . . . . . . . -1 Weapon -3 | . . . . . . . . . -1 . . -1 . . . . . . . . . . -1 . . Parts Attached 236 | 8 13 1 . 6 26 2 18 17 49 . 18 19 . 2 3 . 8 15 6 4 5 6 4 1 5 Power 20 | 1 1 . . . 2 . . . 4 . 4 3 . . . . 1 . 1 1 . . 1 . 1 Engine 8 | 1 1 . . . 2 . . . 1 . . 2 . . . . . . . 1 . . . . . Core 9 | . . . . . . . . . 2 . 4 1 . . . . 1 . 1 . . . . . . Reactor 3 | . . . . . . . . . 1 . . . . . . . . . . . . . 1 . 1 Propulsion 56 | 2 7 . . . 10 . 8 . 16 . 5 . . . 1 . 2 . . . . 4 1 . . Treads 16 | 2 4 . . . 4 . 6 . . . . . . . . . . . . . . . . . . Leg . | . . . . . . . . . . . . . . . . . . . . . . . . . . Wheel 10 | . 3 . . . 5 . 2 . . . . . . . . . . . . . . . . . . Hover . | . . . . . . . . . . . . . . . . . . . . . . . . . . Flight 30 | . . . . . 1 . . . 16 . 5 . . . 1 . 2 . . . . 4 1 . . Utility 106 | 3 4 . . 5 10 1 2 8 24 . 7 13 . 2 2 . 3 10 3 . 3 2 1 1 2 Device 46 | . 2 . . 2 4 . . 3 12 . 3 4 . 2 2 . 2 6 . . 1 1 1 . 1 Storage 4 | 1 . . . . 2 . . . 1 . . . . . . . . . . . . . . . . Processor 7 | 1 . . . 3 2 . . . 1 . . . . . . . . . . . . . . . . Hackware 20 | . . . . . . 1 1 3 7 . 2 2 . . . . 1 . . . 1 1 . . 1 Protection 29 | 1 2 . . . 2 . 1 2 3 . 2 7 . . . . . 4 3 . 1 . . 1 . Artifact . | . . . . . . . . . . . . . . . . . . . . . . . . . . Weapon 54 | 2 1 1 . 1 4 1 8 9 5 . 2 3 . . . . 2 5 2 3 2 . 1 . 2 Energy Gun . | . . . . . . . . . . . . . . . . . . . . . . . . . . Energy Cannon 2 | . . . . . . . . . . . . . . . . . . . 1 1 . . . . . Ballistic Gun 21 | 2 1 1 . 1 4 1 6 4 . . . . . . . . . . . 1 . . . . . Ballistic Cannon . | . . . . . . . . . . . . . . . . . . . . . . . . . . Launcher 9 | . . . . . . . . 1 3 . 1 . . . . . 1 2 . . . . . . 1 Special Weapon 9 | . . . . . . . 2 3 1 . 1 1 . . . . . . . . 1 . . . . Impact Weapon . | . . . . . . . . . . . . . . . . . . . . . . . . . . Slashing Weapon 11 | . . . . . . . . 1 1 . . 1 . . . . 1 2 1 1 1 . 1 . 1 Piercing Weapon . | . . . . . . . . . . . . . . . . . . . . . . . . . . Special Melee Weapon 2 | . . . . . . . . . . . . 1 . . . . . 1 . . . . . . . Unidentified Prototypes 15 | . . . . . 3 . . . 8 . . . . . . . 1 . 1 . . 1 1 . . Parts Lost 16 | . . . . . . 2 1 1 . 1 2 3 . . . 1 . 2 2 . . . . 1 . Power 4 | . . . . . . . . . . . 1 1 . . . 1 . . 1 . . . . . . Propulsion 2 | . . . . . . 1 . 1 . . . . . . . . . . . . . . . . . Utility 8 | . . . . . . 1 1 . . 1 1 1 . . . . . 1 1 . . . . 1 . Weapon 2 | . . . . . . . . . . . . 1 . . . . . 1 . . . . . . . Highest Loss Streak 2 | . . . . . . 1 1 1 . 1 1 2 . . . 1 . 2 2 . . . . 1 . To Critical Strikes 1 | . . . . . . . . . . . . . . . . . . . 1 . . . . . . Average Slot Usage (%) 90 | . 67 83 85 91 97 93 91 88 93 86 89 97 100 100 100 100 99 98 92 96 100 80 84 82 83 Engine 2 | . 4 4 4 4 5 5 5 5 . . . . . . . . . . . 2 6 7 3 . . Core 1 | . . . . . . . . . 4 5 5 4 5 5 6 6 6 6 4 3 . . . . . Treads 10 | . 27 19 19 19 15 15 16 15 . . . . . . . . . . . . . . . . . Wheel 6 | . . 14 14 14 15 14 12 11 . . . . . . . . . . . . . . . . . Flight 13 | . . . . . . . . . 32 33 33 35 35 35 31 31 33 33 33 33 33 22 15 15 16 Device 11 | . 5 9 9 10 12 21 15 17 8 6 5 2 5 16 18 18 20 14 13 13 14 8 15 13 15 Storage 4 | . 4 4 4 4 5 5 5 5 5 5 5 5 5 5 6 6 6 6 6 6 6 7 7 7 . Processor 3 | . 4 4 4 8 16 1 . . . 5 . . . . . . . . . . . . . . . Hackware 10 | . . . . . . 3 8 5 23 11 21 27 23 11 12 12 12 13 13 13 19 28 30 30 25 Protection 7 | . 7 9 9 9 5 5 4 5 5 11 10 9 11 11 12 12 6 11 13 13 5 . . . 8 Ballistic Gun 10 | . 9 17 19 19 21 21 19 18 . . . . . . . . . . . 3 1 . . . . Special Weapon 1 | . . . . . . . 1 1 5 1 1 2 5 5 6 6 6 3 . . . . . . . Slashing Weapon 2 | . . . . . . . . . 4 5 5 4 5 5 6 6 6 5 . . 4 7 7 7 7 Peak Build Rating 97 | 8 17 19 20 31 54 56 60 61 85 85 88 96 96 97 92 92 92 92 90 91 90 75 81 83 78 Average Rating 55 | 5 14 18 19 24 42 55 57 56 69 76 76 82 96 96 91 91 86 88 84 88 83 65 76 80 76 On Entrance 63 | . 8 17 19 20 27 54 56 58 53 85 74 80 96 96 90 92 82 86 90 85 90 75 68 81 77 Naked Turns . | . . . . . . . . . . . . . . . . . . . . . . . . . . Heaviest Build 86 | 18 22 23 23 26 86 86 86 86 36 34 33 30 27 29 29 29 28 33 30 33 30 25 31 30 30 Greatest Support 100 | 40 100 40 30 60 68 68 68 66 43 34 46 35 30 30 30 39 30 33 30 33 30 28 32 32 32 Greatest Overweight (x) 4 | 3 1 . . . 2 4 4 4 2 . . . . . . . . . . . . 1 . . . Average Overweight (x) . | . . . . . . 2 2 3 . . . . . . . . . . . . . . . . . Largest Inventory Capacity 20 | 10 10 10 10 10 20 20 20 20 20 10 10 10 10 10 10 10 10 10 10 10 10 10 10 10 10 Average Capacity 12 | 9 10 10 10 10 13 20 20 20 10 10 10 10 10 10 10 10 10 10 10 10 10 10 10 10 5 Most Carried 20 | . 5 10 10 10 16 18 20 20 20 10 10 10 10 10 10 10 10 10 10 10 9 9 7 7 7 Average Carried 10 | . 1 7 10 10 12 16 18 19 8 10 8 7 10 8 10 10 9 9 9 9 9 7 7 6 4 Final Capacity 20 | 10 10 10 10 10 20 20 20 20 10 10 10 10 10 10 10 10 10 10 10 10 10 10 10 10 5 Final Carried 20 | . 5 10 10 10 16 18 19 20 10 10 8 10 10 10 10 10 10 10 10 9 9 7 7 6 4 Class Distribution -------------------- 19% | Hacker-Sprinter 19% | Hacker-Tank 12% | Hacker-Mutant 10% | Wizard-Sprinter 10% | Scavenger-Skirmisher 10% | Scavenger-Tank 5% | Scavenger-Gunner 5% | Machinist-Sprinter 3% | Bothacker-Tank Dominant Class ---------------- Hacker-Mutant | -10/Materials Scavenger-Tank | -10/Mines Scavenger-Tank | -10/Exiles Scavenger-Skirmisher | -9/Mines Scavenger-Tank | -8/Materials Hacker-Tank | -8/Garrison Hacker-Tank | -8/Materials Bothacker-Tank | -8/Garrison Wizard-Sprinter | -7/Factory Hacker-Sprinter | -7/Waste Hacker-Sprinter | -7/Factory Wizard-Sprinter | -6/Factory Hacker-Sprinter | -6/Waste Machinist-Sprinter | -6/Factory Machinist-Sprinter | -5/Factory Machinist-Sprinter | -5/DSF Hacker-Sprinter | -4/Factory Hacker-Sprinter | -4/Extension Hacker-Sprinter | -4/Cetus Hacker-Sprinter | -4/Archives Hacker-Sprinter | -4/Hub_04(d) Wizard-Sprinter | -3/Research Wizard-Mutant | -2/Research Wizard-Mutant | -2/Testing Hacker-Mutant | -1/Access Resources | -11 -10 -10 -10 -9 -8 -8 -8 -8 -7 -7 -7 -6 -6 -6 -5 -5 -4 -4 -4 -4 -4 -3 -2 -2 -1 ----------- Run | Yrd Mat Min Exi Min Mat Gar Mat Gar Fac Was Fac Fac Was Fac Fac DSF Fac Ext Cet Arc Hub Res Res Tes Acc Matter Collected 6439 | 138 337 67 . 186 1081 836 1029 609 810 5 175 330 30 . . . . 478 34 38 . . 56 . 200 Remotely . | . . . . . . . . . . . . . . . . . . . . . . . . . . Salvage Created 10200 | . 464 99 . 262 1850 973 1745 287 1115 76 750 1007 . 108 . . 55 780 65 32 247 36 . . 249 Parts 581 | . 33 5 . 4 108 59 102 22 59 7 51 44 . 3 . . 4 40 1 6 12 2 . . 19 Haulers Intercepted 9 | . . . . . 6 . 3 . . . . . . . . . . . . . . . . . . Recyclers Shooed 2 | . . . . . . . . . . . . . . . . . 1 1 . . . . . . . Parts Field Recycled . | . . . . . . . . . . . . . . . . . . . . . . . . . . Retrieved Matter . | . . . . . . . . . . . . . . . . . . . . . . . . . . Parts Self-Destructed . | . . . . . . . . . . . . . . . . . . . . . . . . . . Prevented . | . . . . . . . . . . . . . . . . . . . . . . . . . . Kills | -11 -10 -10 -10 -9 -8 -8 -8 -8 -7 -7 -7 -6 -6 -6 -5 -5 -4 -4 -4 -4 -4 -3 -2 -2 -1 ------- Run | Yrd Mat Min Exi Min Mat Gar Mat Gar Fac Was Fac Fac Was Fac Fac DSF Fac Ext Cet Arc Hub Res Res Tes Acc Combat Hostiles Destroyed 210 | . 11 2 . 18 31 30 26 10 15 2 15 18 . 3 . . 4 17 1 . 1 . . . 6 Melee 61 | . . . . . . . . 1 12 2 15 13 . 3 . . 1 10 1 . . . . . 3 Guns 127 | . 11 2 . 18 31 30 26 9 . . . . . . . . . . . . . . . . . AOE 21 | . . . . . . . . . 3 . . 5 . . . . 3 7 . . . . . . 3 Classes Destroyed 19 | . 4 1 . 2 6 3 . 1 . . 1 . . . . . . . . . 1 . . . . Worker 9 | . . . . . 2 . 5 . . . . 2 . . . . . . . . . . . . . Builder 6 | . 2 . . . . . . . . . 3 . . . . . . . . . 1 . . . . Tunneler 1 | . . . . . 1 . . . . . . . . . . . . . . . . . . . . Hauler 9 | . . . . . 6 . 3 . . . . . . . . . . . . . . . . . . Recycler 12 | . . 1 . . 1 . 3 . 5 . 1 . . . . . . . . . 1 . . . . Operator 6 | . . . . . 1 . 4 . . . . . . . . . . . . 1 . . . . . Watcher 24 | . 3 . . . 3 . 3 . 4 1 2 4 . . . . . 3 . . . 1 . . . Swarmer 80 | . 4 2 . 2 8 15 6 7 2 2 7 5 . 2 . . 4 11 . . . . . . 3 Cutter 1 | . . . . . . . . . . . 1 . . . . . . . . . . . . . . Grunt 62 | . 7 . . . 14 7 12 . 9 . 3 8 . . . . . 2 . . . . . . . Brawler 2 | . . . . . . 1 1 . . . . . . . . . . . . . . . . . . Duelist 3 | . . . . . . 3 . . . . . . . . . . . . . . . . . . . Protector 1 | . . . . . . . . . . . . . . . . . . . . . 1 . . . . Sentry 25 | . . . . . 7 . 6 2 1 . 1 3 . 1 . . . 4 . . . . . . . Demolisher 1 | . . . . 1 . . . . . . . . . . . . . . . . . . . . . Hunter 6 | . . . . . 2 1 1 . . . . 2 . . . . . . . . . . . . . Programmer 12 | . . . . . . 3 . . 3 . 3 . . . . . . . . . . . . . 3 Behemoth 1 | . . . . . . . . 1 . . . . . . . . . . . . . . . . . Cetus Guard 1 | . . . . . . . . . . . . . . . . . . . 1 . . . . . . Assembled 15 | . . . . 15 . . . . . . . . . . . . . . . . . . . . . Best Kill Streak 12 | . 4 2 . 4 5 12 9 2 6 3 4 8 . 2 . . 4 4 1 1 3 1 . . 3 Combat Bots Only 12 | . 3 2 . 4 4 12 7 2 3 2 3 8 . 2 . . 4 4 1 . 1 . . . 3 Max Kills in Single Turn 4 | . 2 1 . 1 2 3 2 1 1 1 1 2 . 1 . . 3 4 1 1 2 1 . . 3 Gunslinging 2 | . 1 . . . 1 2 1 . . . . . . . . . . . . . . . . . . Exploded 4 | . . . . . . . . . 1 . . 1 . . . . 3 4 . . . . . . 3 Melee 1 | . . . . . . . . 1 1 1 1 1 . 1 . . 1 1 1 . . . . . 1 Uniques/NPCs Destroyed . | . . . . . . . . . . . . . . . . . . . . . . . . . . Combat | -11 -10 -10 -10 -9 -8 -8 -8 -8 -7 -7 -7 -6 -6 -6 -5 -5 -4 -4 -4 -4 -4 -3 -2 -2 -1 -------- Run | Yrd Mat Min Exi Min Mat Gar Mat Gar Fac Was Fac Fac Was Fac Fac DSF Fac Ext Cet Arc Hub Res Res Tes Acc Hostile Shots Fired 957 | . 66 7 . 18 74 91 51 60 80 9 150 161 . 16 1 6 9 63 25 . 12 18 6 7 27 Missed 354 | . 18 2 . 4 20 18 14 19 23 3 75 69 . 10 1 5 4 28 10 . 6 13 2 . 10 Damage Taken 5282 | . 389 23 . 178 361 355 373 417 396 60 622 575 . 42 . 79 48 508 251 32 134 70 . 114 255 Core 689 | . 11 4 . . 37 6 . 42 88 9 129 147 . . . 12 . 87 28 . . . . 30 59 Absorbed by Shields 751 | . . . . . 132 218 140 159 37 . . . . . . 8 . 6 51 . . . . . . Redirected to Shielding 981 | . 2 1 . . . . . . 66 32 170 139 . 34 . 17 . 226 155 28 59 . . 28 24 Ignored by Resistances 3721 | . 248 17 . 110 300 373 298 341 276 39 395 382 . 26 . 49 30 304 176 19 76 41 . 67 154 Regen/Repaired (Parts) 502 | . . . . . . . 188 100 . . 52 100 . . . . . . . . . . . . 62 Core Remaining (%) 91 | 100 . . . 98 . . . 89 . . 71 . . 81 . 98 . . . . 85 100 . 96 92 Volleys Fired 404 | . 48 7 . 28 67 77 60 44 33 . 3 14 4 . . . 6 8 2 2 . . . . 1 Largest 4 | . 3 3 . 4 4 4 4 4 1 . 1 1 1 . . . 1 1 1 1 . . . . 1 Hottest 100 | . 60 60 . 83 98 98 100 100 39 . 39 39 7 . . . 43 43 75 35 . . . . 43 Shots Fired 1118 | . 101 21 . 112 268 204 220 119 33 . 3 14 4 . . . 6 8 2 2 . . . . 1 Gun 1031 | . 101 21 . 112 268 204 214 109 . . . . . . . . . . . 2 . . . . . Cannon 2 | . . . . . . . . . . . . . . . . . . . 2 . . . . . . Launcher 27 | . . . . . . . . 2 5 . 1 9 . . . . 1 8 . . . . . . 1 Special 58 | . . . . . . . 6 8 28 . 2 5 4 . . . 5 . . . . . . . . Kinetic 1031 | . 101 21 . 112 268 204 214 109 . . . . . . . . . . . 2 . . . . . Thermal . | . . . . . . . . . . . . . . . . . . . . . . . . . . Explosive 27 | . . . . . . . . 2 5 . 1 9 . . . . 1 8 . . . . . . 1 Electromagnetic 2 | . . . . . . . . . . . . . . . . . . . 2 . . . . . . Robot Hit Streak 48 | . 17 17 . 18 48 39 30 25 18 . 20 22 13 . . . 4 11 1 3 . . . . . Robot Miss Streak 3 | . 3 1 . 2 1 2 2 2 2 . . 1 . . . . 1 . 1 . . . . . . Penetration Max . | . . . . . . . . . . . . . . . . . . . . . . . . . . Secondary Targets 42 | . 1 . . 5 11 15 9 1 . . . . . . . . . . . . . . . . . Max Gunslinging Chain 2 | . 1 . . 1 1 2 1 1 . . . . . . . . . . . . . . . . . Shots Hit Robots 1030 | . 78 15 . 76 213 140 172 64 69 4 46 65 4 5 . . 5 45 6 5 . 2 . . 16 Core Hits 434 | . 33 7 . 46 79 49 67 19 26 2 19 27 . 3 . . 8 27 4 2 6 1 . . 9 Critical Kills 4 | . . . . . 2 . 2 . . . . . . . . . . . . . . . . . . Critical Parts Destroyed 6 | . . . . . 1 4 . 1 . . . . . . . . . . . . . . . . . Critical Strikes 30 | . . . . 1 3 4 2 2 . . 1 4 . 1 . . . 4 2 . . . . . 6 Destroy 11 | . . . . 1 3 4 2 1 . . . . . . . . . . . . . . . . . Sever 19 | . . . . . . . . 1 . . 1 4 . 1 . . . 4 2 . . . . . 6 Melee Attacks 303 | . . . . . . . . 2 49 4 63 69 . 16 6 . 7 40 5 4 7 2 6 1 22 Impact . | . . . . . . . . . . . . . . . . . . . . . . . . . . Slashing 298 | . . . . . . . . 2 49 4 63 67 . 16 6 . 7 40 5 1 7 2 6 1 22 Piercing . | . . . . . . . . . . . . . . . . . . . . . . . . . . Sneak Attacks 18 | . . . . . . . . . 7 . 4 3 . . . . . 3 . 1 . . . . . Combat Hostiles 4 | . . . . . . . . . 1 . . . . . . . . 3 . . . . . . . Follow-up Attacks . | . . . . . . . . . . . . . . . . . . . . . . . . . . Damage Inflicted 26158 | . 633 109 . 645 3306 2591 3286 1269 2733 237 2555 3495 . 244 . . 375 2919 244 91 372 95 . . 959 Guns 11513 | . 628 109 . 645 3306 2591 3087 1089 . . . . . . . . . . . 58 . . . . . Cannons 28 | . . . . . . . . . . . . . . . . . . . 28 . . . . . . Explosions 3310 | . . . . . . . 197 87 379 . 69 751 . . . . 319 913 . . 372 . . . 223 Melee 11300 | . . . . . . . . 93 2354 237 2486 2744 . 244 . . 56 2006 216 33 . 95 . . 736 Ramming 7 | . 5 . . . . . 2 . . . . . . . . . . . . . . . . . . Kinetic 11513 | . 628 109 . 645 3306 2591 3087 1089 . . . . . . . . . . . 58 . . . . . Thermal . | . . . . . . . . . . . . . . . . . . . . . . . . . . Explosive 2938 | . . . . . . . 197 87 379 . 69 751 . . . . 319 913 . . . . . . 223 Electromagnetic 400 | . . . . . . . . . . . . . . . . . . . 28 . 372 . . . . Impact . | . . . . . . . . . . . . . . . . . . . . . . . . . . Slashing 11300 | . . . . . . . . 93 2354 237 2486 2744 . 244 . . 56 2006 216 33 . 95 . . 736 Piercing . | . . . . . . . . . . . . . . . . . . . . . . . . . . Highest Corruption 4 | . . . . . . 2 3 4 1 1 2 . 3 3 . . . . 1 1 2 . . 1 . Average Corruption 2 | . . . . . . 1 2 3 1 1 1 . 3 3 . . . . 1 1 1 . . 1 . Corruption Purged 2 | . . . . . . . . . . . 2 . . . . . . . . . . . . . . Corruption Blocked . | . . . . . . . . . . . . . . . . . . . . . . . . . . Effects 44 | . . . . . . 7 16 14 . . 1 . 1 3 . . . . . 1 . . . 1 . Message Errors 13 | . . . . . . . 5 4 . . 1 . . 2 . . . . . 1 . . . . . Matter Fused 10 | . . . . . . 1 3 3 . . . . 1 1 . . . . . . . . . 1 . Heat Flow Errors 5 | . . . . . . 1 3 1 . . . . . . . . . . . . . . . . . Energy Discharges 6 | . . . . . . 4 1 1 . . . . . . . . . . . . . . . . . Parts Fused 1 | . . . . . . . . 1 . . . . . . . . . . . . . . . . . Data Loss (minor) 4 | . . . . . . . 2 2 . . . . . . . . . . . . . . . . . Misfires 3 | . . . . . . . 2 1 . . . . . . . . . . . . . . . . . Weapon Failures 2 | . . . . . . 1 . 1 . . . . . . . . . . . . . . . . . Overload Shots . | . . . . . . . . . . . . . . . . . . . . . . . . . . Overflow Damage 1196 | . . . . . . . 22 . 349 65 330 161 . . . . 27 129 . . 2 5 . . 106 Projectiles . | . . . . . . . . . . . . . . . . . . . . . . . . . . Explosions 69 | . . . . . . . 22 . 2 . . 6 . . . . . 11 . . 2 . . . 26 Melee 1127 | . . . . . . . . . 347 65 330 155 . . . . 27 118 . . . 5 . . 80 Knockbacks . | . . . . . . . . . . . . . . . . . . . . . . . . . . Impact . | . . . . . . . . . . . . . . . . . . . . . . . . . . Kinetic . | . . . . . . . . . . . . . . . . . . . . . . . . . . Secondary . | . . . . . . . . . . . . . . . . . . . . . . . . . . Self-Inflicted Damage 144 | . . . . . . . 144 . . . . . . . . . . . . . . . . . . Shots 2 | . . . . . . . 2 . . . . . . . . . . . . . . . . . . Rammed 2 | . 2 . . . . . . . . . . . . . . . . . . . . . . . . Targets Rammed 3 | . 2 . . . . . 1 . . . . . . . . . . . . . . . . . . Kicked . | . . . . . . . . . . . . . . . . . . . . . . . . . . Crushed 1 | . . . . . . . 1 . . . . . . . . . . . . . . . . . . Highest Temperature 352 | . 144 32 . 142 206 240 344 352 236 144 160 257 . . 210 . . 220 24 . 186 11 4 3 32 Average Temperature 73 | . 70 15 . 42 61 56 99 108 76 63 48 92 . . 72 . . 92 12 . 111 3 1 1 2 Received Heat Transfer 1996 | . 324 . . . 236 81 141 109 264 . 105 285 . 12 . . . 336 49 9 9 9 . 18 9 Effects 5 | . . . . . . . 2 1 . . . 1 . . 1 . . . . . . . . . . Energy Bleed 2 | . . . . . . . . . . . . 1 . . 1 . . . . . . . . . . Interference 2 | . . . . . . . 2 . . . . . . . . . . . . . . . . . . Matter Decay 1 | . . . . . . . . 1 . . . . . . . . . . . . . . . . . Siege Activations . | . . . . . . . . . . . . . . . . . . . . . . . . . . Robots Corrupted 1 | . . . . . . . . . . . . . . . . . . . . . 1 . . . . Combat Hostiles 1 | . . . . . . . . . . . . . . . . . . . . . 1 . . . . Parts Fried 5 | . . . . . 1 . . . . . . . . . . . . . . . 4 . . . . Impact Corruptions . | . . . . . . . . . . . . . . . . . . . . . . . . . . Robots Melted . | . . . . . . . . . . . . . . . . . . . . . . . . . . Combat Hostiles . | . . . . . . . . . . . . . . . . . . . . . . . . . . Parts Melted 2 | . . . . . . . . . . . 1 . . . . . . . . . . . . . 1 Heat Transferred . | . . . . . . . . . . . . . . . . . . . . . . . . . . Parts Sabotaged . | . . . . . . . . . . . . . . . . . . . . . . . . . . Parts Stolen . | . . . . . . . . . . . . . . . . . . . . . . . . . . Parts Stripped . | . . . . . . . . . . . . . . . . . . . . . . . . . . Power Chain Reactions 2 | . . . . . . . . . . . 2 . . . . . . . . . . . . . . Alert | -11 -10 -10 -10 -9 -8 -8 -8 -8 -7 -7 -7 -6 -6 -6 -5 -5 -4 -4 -4 -4 -4 -3 -2 -2 -1 ------- Run | Yrd Mat Min Exi Min Mat Gar Mat Gar Fac Was Fac Fac Was Fac Fac DSF Fac Ext Cet Arc Hub Res Res Tes Acc Peak Influence 1608 | . 177 97 . 40 331 854 862 815 566 126 442 573 83 161 69 36 239 481 129 178 318 233 163 1608 1307 Initial 1100 | . . 42 . . . 23 305 200 317 31 67 124 38 44 57 36 9 85 48 36 42 118 98 68 1100 Average 267 | . 68 47 . 11 107 455 504 543 268 84 213 308 64 80 62 34 64 268 118 141 155 149 123 1570 1152 Maximum Alert Level 5 | . . . . . 1 3 3 3 2 . 2 2 . . . . 1 2 . . 1 1 . 5 4 Low Security (%) 53 | 100 100 100 . 100 82 19 5 . 21 100 44 22 100 100 100 100 98 43 100 100 68 88 100 1 . Level 1 24 | . . . . . 17 24 31 24 62 . 52 57 . . . . 1 38 . . 31 11 . . . Level 2 13 | . . . . . . 38 51 33 15 . 3 20 . . . . . 18 . . . . . . . Level 3 4 | . . . . . . 17 11 42 . . . . . . . . . . . . . . . . 2 Level 4 3 | . . . . . . . . . . . . . . . . . . . . . . . . . 97 Level 5 . | . . . . . . . . . . . . . . . . . . . . . . . . . . High Security . | . . . . . . . . . . . . . . . . . . . . . . . . . . Max Security . | . . . . . . . . . . . . . . . . . . . . . . . . 98 . Squads Dispatched 44 | . 2 . . . 3 . 5 . 7 . 9 7 . . 1 1 . . . . 5 1 . . 3 Investigation 29 | . 2 . . . 3 . 2 . 6 . 5 6 . . 1 . . . . . 3 1 . . . Extermination 3 | . . . . . . . . . 1 . 1 . . . . . . . . . . . . . 1 Reinforcement 8 | . . . . . . . 1 . . . 3 1 . . . 1 . . . . 2 . . . . Assault 3 | . . . . . . . 1 . . . . . . . . . . . . . . . . . 2 Garrison 1 | . . . . . . . 1 . . . . . . . . . . . . . . . . . . Intercept . | . . . . . . . . . . . . . . . . . . . . . . . . . . Searches Triggered . | . . . . . . . . . . . . . . . . . . . . . . . . . . Construction Impeded . | . . . . . . . . . . . . . . . . . . . . . . . . . . Haulers Reinforced . | . . . . . . . . . . . . . . . . . . . . . . . . . . Active Scanning Responses . | . . . . . . . . . . . . . . . . . . . . . . . . . . Cargo Convoy Interrupts 3 | . . . . . . . . . 1 . 1 1 . . . . . . . . . . . . . Stealth | -11 -10 -10 -10 -9 -8 -8 -8 -8 -7 -7 -7 -6 -6 -6 -5 -5 -4 -4 -4 -4 -4 -3 -2 -2 -1 --------- Run | Yrd Mat Min Exi Min Mat Gar Mat Gar Fac Was Fac Fac Was Fac Fac DSF Fac Ext Cet Arc Hub Res Res Tes Acc Distress Signals 10 | . 1 . . . . . 1 . . . . . . 1 . . 1 . 1 . 4 . . 1 . Communications Jammed 124 | . . . . . . . . . . . 17 6 . . . . 1 22 53 . 8 5 5 . 7 Distress Signals 124 | . . . . . . . . . . . 17 6 . . . . 1 22 53 . 8 5 5 . 7 Times Spotted 373 | . 18 2 . 17 39 30 35 22 31 6 43 27 5 6 2 5 9 15 5 6 15 8 4 8 15 Peak Tracking Total 18 | . 5 2 . 3 4 5 5 3 4 2 8 7 4 4 2 5 5 5 5 2 18 8 3 9 5 Tactical Retreats 24 | . 1 . . . 1 . . . 2 1 8 1 1 2 . . 1 1 . . 2 . 1 1 1 Traps | -11 -10 -10 -10 -9 -8 -8 -8 -8 -7 -7 -7 -6 -6 -6 -5 -5 -4 -4 -4 -4 -4 -3 -2 -2 -1 ------- Run | Yrd Mat Min Exi Min Mat Gar Mat Gar Fac Was Fac Fac Was Fac Fac DSF Fac Ext Cet Arc Hub Res Res Tes Acc Traps Triggered 25 | . 1 . . . 1 5 2 5 1 . 1 1 . . . 1 . 6 . . . . . 1 . Indirectly . | . . . . . . . . . . . . . . . . . . . . . . . . . . Trap Hack Attempts . | . . . . . . . . . . . . . . . . . . . . . . . . . . Triggered . | . . . . . . . . . . . . . . . . . . . . . . . . . . Disarmed . | . . . . . . . . . . . . . . . . . . . . . . . . . . Reprogrammed 83 | . 26 . . . 6 . . . 12 . 9 12 . . . . . . . . . 12 6 . . Reused 22 | . 7 . . . 3 . . . 4 . 2 4 . . . . . . . . . 1 1 . . Traps Extracted . | . . . . . . . . . . . . . . . . . . . . . . . . . . Installed . | . . . . . . . . . . . . . . . . . . . . . . . . . . Triggered 26 | . 7 . . . 3 . . . 5 . 2 7 . . . . . . . . . 1 1 . . Objects Rigged 4 | . . . . . . . . . . . . . . . . . . . . . 2 . 2 . . Exploded 1 | . . . . . . . . . . . . . . . . . . . . . 1 . . . . Machines | -11 -10 -10 -10 -9 -8 -8 -8 -8 -7 -7 -7 -6 -6 -6 -5 -5 -4 -4 -4 -4 -4 -3 -2 -2 -1 ---------- Run | Yrd Mat Min Exi Min Mat Gar Mat Gar Fac Was Fac Fac Was Fac Fac DSF Fac Ext Cet Arc Hub Res Res Tes Acc Machines Disabled 25 | . . . . . 3 4 6 3 . . . . . . . . 1 2 . . 6 . . . . Max in Single Turn 6 | . . . . . 1 1 2 1 . . . . . . . . 1 1 . . 6 . . . . Garrison Access 9 | . . . . . . . . . 1 . 1 2 . 1 1 . 1 . . . . . . . 2 Garrison Relay 6 | . . . . . . 3 . 3 . . . . . . . . . . . . . . . . . Network Hub 2 | . . . . . . . . . . . . . . . . . . . . . 2 . . . . Machines Repaired . | . . . . . . . . . . . . . . . . . . . . . . . . . . Machines Dismantled . | . . . . . . . . . . . . . . . . . . . . . . . . . . Machines Sabotaged 1 | . . . . . . . . . . . . . . . . . . . . . 1 . . . . Overloaded Fab Kills 6 | . . . . . . . . . 2 . 4 . . . . . . . . . . . . . . Hacking | -11 -10 -10 -10 -9 -8 -8 -8 -8 -7 -7 -7 -6 -6 -6 -5 -5 -4 -4 -4 -4 -4 -3 -2 -2 -1 --------- Run | Yrd Mat Min Exi Min Mat Gar Mat Gar Fac Was Fac Fac Was Fac Fac DSF Fac Ext Cet Arc Hub Res Res Tes Acc Machines Accessed 160 | . 10 . 2 . 16 2 12 3 20 . 25 25 . 7 3 . 2 14 1 . 5 3 2 . 8 Terminals 102 | . 8 . . . 12 2 8 3 11 . 11 12 . 4 2 . 1 13 1 . 5 3 2 . 4 Fabricators 20 | . . . . . . . . . 5 . 5 6 . 2 . . . . . . . . . . 2 Repair Stations 4 | . . . . . . . . . 1 . 1 2 . . . . . . . . . . . . . Recycling Units 11 | . 2 . . . 2 . 2 . . . 2 2 . . . . . 1 . . . . . . . Scanalyzers 8 | . . . . . 1 . 1 . 1 . 4 1 . . . . . . . . . . . . . Garrison Access 13 | . . . . . 1 . 1 . 2 . 2 2 . 1 1 . 1 . . . . . . . 2 Total Hacks 595 | . 48 . 2 . 49 5 40 7 104 . 95 109 . 21 5 . 4 30 2 . 22 13 16 . 23 Successful 455 | . 34 . 2 . 37 2 35 2 89 . 76 80 . 15 3 . 3 18 1 . 16 11 13 . 18 Failed 140 | . 14 . . . 12 3 5 5 15 . 19 29 . 6 2 . 1 12 1 . 6 2 3 . 5 Catastrophic 8 | . . . . . . . . 2 . . 2 2 . . . . 1 . . . . 1 . . . Database Lockouts . | . . . . . . . . . . . . . . . . . . . . . . . . . . Manual 343 | . 29 . 1 . 36 4 23 6 57 . 57 64 . 9 2 . 2 7 1 . 18 6 12 . 9 Terminals 379 | . 39 . . . 41 5 22 7 54 . 48 57 . 11 4 . 3 27 2 . 22 13 16 . 8 Fabricators 115 | . . . . . . . . . 40 . 27 26 . 9 . . . . . . . . . . 13 Repair Stations 9 | . . . . . . . . . 1 . 3 5 . . . . . . . . . . . . . Recycling Units 33 | . 9 . . . 5 . 8 . . . 3 5 . . . . . 3 . . . . . . . Scanalyzers 37 | . . . . . 2 . 8 . 3 . 10 14 . . . . . . . . . . . . . Garrison Access 20 | . . . . . 1 . 2 . 6 . 4 2 . 1 1 . 1 . . . . . . . 2 Terminal Hacks 170 | . 19 . 2 . 19 2 11 2 26 . 20 22 . 7 1 . 1 13 1 . 7 9 6 . 2 Record 1 | . . . 1 . . . . . . . . . . . . . . . . . . . . . . Part Schematic 14 | . . . . . 2 . . . 5 . . 5 . 1 . . . 1 . . . . . . . Robot Schematic 3 | . . . . . . . . . 1 . 2 . . . . . . . . . . . . . . Robot Analysis 15 | . 4 . . . 1 . 7 . 2 . . . . . . . 1 . . . . . . . . Prototype ID Bank 34 | . 2 . . . 9 . . . 4 . 5 10 . . . . . 1 . . 1 2 . . . Open Door 12 | . . . . . . . . . . . . . . . . . . 10 1 . . . . . 1 Open DSF 3 | . . . . . . . . . . . 1 . . 1 1 . . . . . . . . . . Level Access Points 6 | . . . . . . . . . . . 1 . . 1 . . . . . . 1 1 1 . 1 Machine Index 5 | . . . . . . . . . 1 . 1 1 . . . . . . . . . 1 1 . . Terminal Index 2 | . . . . . 1 . . . . . . . . 1 . . . . . . . . . . . Fabricator Index 1 | . . . . . . . . . . . . 1 . . . . . . . . . . . . . Locate Traps 24 | . 6 . . . 2 . 2 . 3 . 5 2 . 1 . . . 1 . . 2 . . . . Reprogram Traps 17 | . 5 . . . 1 . . . 2 . 2 2 . . . . . . . . . 3 2 . . Hauler Manifests 4 | . . . . . 1 . 1 . 2 . . . . . . . . . . . . . . . . Zone Layout 24 | . 2 . . . 2 . 1 . 6 . 3 1 . 2 . . . . . . 3 2 2 . . Garrison Registry 2 | . . . . . . 1 . 1 . . . . . . . . . . . . . . . . . Security Stations 2 | . . . . . . 1 . 1 . . . . . . . . . . . . . . . . . Derelict Proto ID Bank 1 | . . . 1 . . . . . . . . . . . . . . . . . . . . . . Fabricator Hacks 68 | . . . . . . . . . 27 . 14 15 . 4 . . . . . . . . . . 8 Network Status 3 | . . . . . . . . . . . 1 . . . . . . . . . . . . . 2 Load Schematic 32 | . . . . . . . . . 14 . 6 7 . 2 . . . . . . . . . . 3 Build 33 | . . . . . . . . . 13 . 7 8 . 2 . . . . . . . . . . 3 Repair Station Hacks 4 | . . . . . . . . . . . 2 2 . . . . . . . . . . . . . Scan Component 2 | . . . . . . . . . . . 1 1 . . . . . . . . . . . . . Repair 2 | . . . . . . . . . . . 1 1 . . . . . . . . . . . . . Recycling Unit Hacks 11 | . 2 . . . 2 . 3 . . . 2 2 . . . . . . . . . . . . . Retrieve Matter 1 | . . . . . . . 1 . . . . . . . . . . . . . . . . . . Retrieve Components 10 | . 2 . . . 2 . 2 . . . 2 2 . . . . . . . . . . . . . Scanalyzer 29 | . . . . . 2 . 7 . . . 7 13 . . . . . . . . . . . . . Insert Component 12 | . . . . . 1 . 3 . . . 2 6 . . . . . . . . . . . . . Analyze 17 | . . . . . 1 . 4 . . . 5 7 . . . . . . . . . . . . . Garrison Access Hacks 15 | . . . . . 1 . 2 . 3 . 2 2 . 1 1 . 1 . . . . . . . 2 Unlock Access 2 | . . . . . 1 . 1 . . . . . . . . . . . . . . . . . . Seal Access 9 | . . . . . . . . . 1 . 1 2 . 1 1 . 1 . . . . . . . 2 Coupler Status 4 | . . . . . . . 1 . 2 . 1 . . . . . . . . . . . . . . Unauthorized Hacks 158 | . 13 . . . 13 . 12 . 33 . 29 24 . 3 1 . 1 5 . . 9 2 7 . 6 Terminals 93 | . 7 . . . 10 . 8 . 17 . 13 11 . 1 1 . 1 3 . . 9 2 7 . 3 Track 2 | . . . . . . . . . . . . . . . . . . . . . 1 . 1 . . Assimilate 19 | . . . . . 3 . 1 . 3 . 3 3 . . . . 1 1 . . 1 . 1 . 2 Botnet 22 | . 2 . . . 2 . 2 . 2 . 2 2 . 1 1 . . 2 . . 1 2 2 . 1 Detonate 3 | . . . . . . . . . . . . . . . . . . . . . 1 . 2 . . Disrupt 5 | . . . . . . . . . . . 2 . . . . . . . . . 2 . 1 . . Operators 1 | . . . . . . . . . 1 . . . . . . . . . . . . . . . . Skim 38 | . 5 . . . 5 . 5 . 11 . 6 6 . . . . . . . . . . . . . Sabotage 3 | . . . . . . . . . . . . . . . . . . . . . 3 . . . . Fabricators 35 | . . . . . . . . . 12 . 10 8 . 2 . . . . . . . . . . 3 Report 1 | . . . . . . . . . 1 . . . . . . . . . . . . . . . . Prioritize 12 | . . . . . . . . . 4 . 4 2 . 1 . . . . . . . . . . 1 Liberate 17 | . . . . . . . . . 5 . 4 6 . 1 . . . . . . . . . . 1 Haulers 3 | . . . . . . . . . 1 . 1 . . . . . . . . . . . . . 1 Overload 2 | . . . . . . . . . 1 . 1 . . . . . . . . . . . . . . Repair Stations 4 | . . . . . . . . . 1 . 1 2 . . . . . . . . . . . . . Mechanics 3 | . . . . . . . . . 1 . 1 1 . . . . . . . . . . . . . Patch 1 | . . . . . . . . . . . . 1 . . . . . . . . . . . . . Recycling Units 18 | . 6 . . . 3 . 3 . . . 1 3 . . . . . 2 . . . . . . . Reject 6 | . 2 . . . 1 . 1 . . . . 1 . . . . . 1 . . . . . . . Recyclers 2 | . . . . . . . . . . . 1 1 . . . . . . . . . . . . . Mask 6 | . 2 . . . 1 . 1 . . . . 1 . . . . . 1 . . . . . . . Tunnel 4 | . 2 . . . 1 . 1 . . . . . . . . . . . . . . . . . . Scanalyzers 4 | . . . . . . . 1 . 1 . 2 . . . . . . . . . . . . . . Extract 4 | . . . . . . . 1 . 1 . 2 . . . . . . . . . . . . . . Garrison Access 4 | . . . . . . . . . 2 . 2 . . . . . . . . . . . . . . Restock 3 | . . . . . . . . . 2 . 1 . . . . . . . . . . . . . . Reprogram 1 | . . . . . . . . . . . 1 . . . . . . . . . . . . . . Data Cores Recovered 3 | . . . . . 1 . 2 . . . . . . . . . . . . . . . . . . Used 1 | . . . . . . . 1 . . . . . . . . . . . . . . . . . . Hacking Detections 114 | . 9 . . . 13 2 12 3 19 . 18 17 . 4 1 . 1 6 . . 2 2 1 . 4 Full Trace Events 15 | . 2 . . . 2 . . 1 3 . 2 4 . . 1 . . . . . . . . . . Feedback Events 2 | . . . . . . . . 1 . . 1 . . . . . . . . . . . . . . Corruption 2 | . . . . . . . . 1 . . 1 . . . . . . . . . . . . . . Feedback Blocked 1 | . . . . . . . . . . . . 1 . . . . . . . . . . . . . Robot Schematics Acquired 3 | . . . . . . . . . 1 . 2 . . . . . . . . . . . . . . Robots Built 14 | . . . . . . . . . 1 . 3 3 . 2 . . . . . . . . . . 5 Authchips . | . . . . . . . . . . . . . . . . . . . . . . . . . . Time 595 | . . . . . . . . . 58 . 232 134 . 67 . . . . . . . . . . 104 Total Robot Build Rating 51 | . . . . . . . . . 3 . 9 12 . 8 . . . . . . . . . . 19 Part Schematics Acquired 50 | . . . . . 3 . 9 . 17 . 8 11 . 1 . . . 1 . . . . . . . Parts Built 30 | . . . . . . . . . 16 . 4 8 . 2 . . . . . . . . . . . Authchips . | . . . . . . . . . . . . . . . . . . . . . . . . . . Time 2100 | . . . . . . . . . 859 . 591 592 . 58 . . . . . . . . . . . Total Part Build Rating 145 | . . . . . . . . . 63 . 24 44 . 14 . . . . . . . . . . . Parts Repaired 2 | . . . . . . . . . . . 1 1 . . . . . . . . . . . . . Time 137 | . . . . . . . . . . . 112 25 . . . . . . . . . . . . . Parts Recycled . | . . . . . . . . . . . . . . . . . . . . . . . . . . Recycled Matter . | . . . . . . . . . . . . . . . . . . . . . . . . . . Retrieved Matter . | . . . . . . . . . . . . . . . . . . . . . . . . . . Retrieved Components 54 | . 16 . . . 20 . 11 . . . 3 4 . . . . . . . . . . . . . Parts Scanalyzed 12 | . . . . . 1 . 3 . . . 2 6 . . . . . . . . . . . . . Part Schematics Acquired 11 | . . . . . 1 . 2 . . . 2 6 . . . . . . . . . . . . . Parts Damaged 2 | . . . . . . . . . . . 1 1 . . . . . . . . . . . . . Bothacking | -11 -10 -10 -10 -9 -8 -8 -8 -8 -7 -7 -7 -6 -6 -6 -5 -5 -4 -4 -4 -4 -4 -3 -2 -2 -1 ------------ Run | Yrd Mat Min Exi Min Mat Gar Mat Gar Fac Was Fac Fac Was Fac Fac DSF Fac Ext Cet Arc Hub Res Res Tes Acc Used RIF Installer 2 | . . . . . . 1 . 1 . . . . . . . . . . . . . . . . . Signal Jammer 1 | . . . . . . . . 1 . . . . . . . . . . . . . . . . . Robots Hacked 34 | . . . . . . . 4 6 13 . 2 3 4 . . . 1 . . 1 . . . . . Non-combat 23 | . . . . . . . 4 . 13 . 1 3 . . . . 1 . . 1 . . . . . Combat 11 | . . . . . . . . 6 . . 1 . 4 . . . . . . . . . . . . Robot Hacks Applied 43 | . . . . . . . 5 6 18 . 2 6 4 . . . 1 . . 1 . . . . . parse_system 3 | . . . . . . . . . 2 . 1 . . . . . . . . . . . . . . find_chute 2 | . . . . . . . . . 1 . . 1 . . . . . . . . . . . . . drop_inventory 6 | . . . . . . . 2 . 3 . 1 . . . . . . . . . . . . . . find_station 1 | . . . . . . . 1 . . . . . . . . . . . . . . . . . . find_terminals 1 | . . . . . . . . . . . . . . . . . 1 . . . . . . . . locate_traps 1 | . . . . . . . . . . . . 1 . . . . . . . . . . . . . reprogram_traps 5 | . . . . . . . . . 3 . . 2 . . . . . . . . . . . . . block_reporting 2 | . . . . . . . . . 1 . . 1 . . . . . . . . . . . . . map_route 5 | . . . . . . . 1 . 4 . . . . . . . . . . . . . . . . redirect_shields 1 | . . . . . . . . . 1 . . . . . . . . . . . . . . . . ignore_targets 4 | . . . . . . . . . . . . . 4 . . . . . . . . . . . . formatsys_low 4 | . . . . . . . 1 . 1 . . 1 . . . . . . . 1 . . . . . formatsys_high 8 | . . . . . . . . 6 2 . . . . . . . . . . . . . . . . Relay Couplers Released 31 | . . . . . . 11 . 13 4 . 3 . . . . . . . . . . . . . . Machine Destruction 24 | . . . . . . 11 . 13 . . . . . . . . . . . . . . . . . Programmers 7 | . . . . . . . . . 4 . 3 . . . . . . . . . . . . . . Attached 8 | . . . . . . . 1 3 3 . . 1 . . . . . . . . . . . . . Fabnet Peak Effective % . | . . . . . . . . . . . . . . . . . . . . . . . . . . Robots Rewired 2 | . . . . . . . . . . . . 1 . . . . 1 . . . . . . . . Allies Hacked 2 | . . . . . . . . . . . . . . . . . 1 . . . . . . . 1 Hacks Repelled . | . . . . . . . . . . . . . . . . . . . . . . . . . . Allies | -11 -10 -10 -10 -9 -8 -8 -8 -8 -7 -7 -7 -6 -6 -6 -5 -5 -4 -4 -4 -4 -4 -3 -2 -2 -1 -------- Run | Yrd Mat Min Exi Min Mat Gar Mat Gar Fac Was Fac Fac Was Fac Fac DSF Fac Ext Cet Arc Hub Res Res Tes Acc Total Allies 66 | . . 3 . 1 2 . 2 6 4 . 7 7 . 2 . . 2 15 5 1 1 . 1 . 7 Largest Group 14 | . . 3 3 4 2 2 2 5 6 . 5 4 1 3 . . 2 10 14 14 14 1 1 . 5 Highest-Rated Group 989 | . . 40 40 71 36 36 36 96 225 . 97 116 24 85 . . 105 563 989 989 870 26 10 . 144 Highest-Rated Ally 159 | . . 16 16 31 26 26 26 24 110 . 26 30 24 32 . . 65 159 159 159 96 26 10 . 45 Total Orders 25 | . . . . . . 2 1 7 10 . 3 . . . . . . . . . . . . . 2 STAY 7 | . . . . . . 1 . 3 1 . 1 . . . . . . . . . . . . . 1 ROAM 1 | . . . . . . . . . 1 . . . . . . . . . . . . . . . . FOLLOW 7 | . . . . . . 1 . 1 4 . 1 . . . . . . . . . . . . . . GUARD 2 | . . . . . . . . . 2 . . . . . . . . . . . . . . . . AID 8 | . . . . . . . 1 3 2 . 1 . . . . . . . . . . . . . 1 Ally Attacks 245 | . . . . 5 . . . 29 13 . 6 12 . 3 . . . 70 31 24 31 . . . 21 Total Damage 5731 | . . . . 76 . . . 314 347 . 31 405 . 132 . . . 1511 650 637 929 . . . 699 Kills 28 | . . . . . . . . 7 1 . 1 . . . . . . 3 4 4 3 . . . 5 Allies Corrupted 6 | . . . . . . . . . . . . . . . . . . . . . 5 . . . 1 Allies Melted . | . . . . . . . . . . . . . . . . . . . . . . . . . . Intel | -11 -10 -10 -10 -9 -8 -8 -8 -8 -7 -7 -7 -6 -6 -6 -5 -5 -4 -4 -4 -4 -4 -3 -2 -2 -1 ------- Run | Yrd Mat Min Exi Min Mat Gar Mat Gar Fac Was Fac Fac Was Fac Fac DSF Fac Ext Cet Arc Hub Res Res Tes Acc Robot Analysis Total 15 | . 4 . . . 1 . 7 . 2 . . . . . . . 1 . . . . . . . . Derelict Logs Recovered 1 | . . 1 . . . . . . . . . . . . . . . . . . . . . . . Drone Launches . | . . . . . . . . . . . . . . . . . . . . . . . . . . Drone Recoveries . | . . . . . . . . . . . . . . . . . . . . . . . . . . Exploration | -11 -10 -10 -10 -9 -8 -8 -8 -8 -7 -7 -7 -6 -6 -6 -5 -5 -4 -4 -4 -4 -4 -3 -2 -2 -1 ------------- Run | Yrd Mat Min Exi Min Mat Gar Mat Gar Fac Was Fac Fac Was Fac Fac DSF Fac Ext Cet Arc Hub Res Res Tes Acc Turns Passed 15153 | 68 1490 597 248 949 2144 896 1440 884 1450 71 1039 1005 45 260 116 15 216 1020 264 79 86 69 144 53 505 Spaces Moved 15345 | 39 764 618 285 722 1307 511 861 513 2031 277 1493 1662 113 541 184 61 544 1241 142 77 246 163 237 118 595 Core 33 | 9 . . . . . . . . 24 . . . . . . . . . . . . . . . . Treads 1876 | 30 758 31 . 336 516 95 80 30 . . . . . . . . . . . . . . . . . Legs . | . . . . . . . . . . . . . . . . . . . . . . . . . . Wheels 3735 | . 6 587 285 386 791 416 781 483 . . . . . . . . . . . . . . . . . Hover . | . . . . . . . . . . . . . . . . . . . . . . . . . . Flight 9701 | . . . . . . . . . 2007 277 1493 1662 113 541 184 61 544 1241 142 77 246 163 237 118 595 Fastest Speed 6 | 50 80 80 80 80 80 110 116 116 20 20 6 20 23 23 23 14 23 20 23 20 23 26 32 42 42 Average Speed 62 | 146 173 84 80 117 125 137 138 136 22 20 22 22 23 23 23 21 23 22 23 22 23 32 41 42 42 Slowest Speed 240 | 200 240 160 80 160 240 235 235 225 150 26 23 23 23 23 23 23 23 23 29 23 23 99 42 42 42 Overloaded Moves 54 | . . . . . . . . . . . 23 . . . . 10 . 6 . 15 . . . . . Propulsion Burnouts . | . . . . . . . . . . . . . . . . . . . . . . . . . . Robots Hopped 49 | . . . . . . . . . 33 1 5 8 . . . . 1 1 . . . . . . . Cave-ins Triggered . | . . . . . . . . . . . . . . . . . . . . . . . . . . Exploration Rate (%) 51 | 4 97 98 70 97 92 62 70 42 39 97 38 49 79 19 8 58 17 96 60 67 38 7 8 22 17 Regions Visited 25 Branch Regions 8 Pre-discovered Areas 14 | . 2 . 1 . 3 . 1 . 2 . 3 2 . . . . . . . . . . . . . Known Exits Taken 18 | 1 1 1 1 1 1 . 1 . . . 1 . . 1 1 . 1 1 1 1 1 1 1 1 . Unknown Exits Taken . | . . . . . . . . . . . . . . . . . . . . . . . . . . Scrap Searched 1 | . . . . 1 . . . . . . . . . . . . . . . . . . . . . Spaces Dug 272 | . . . . . . . . 10 9 . 18 26 . 11 6 . 4 . . . 161 . 6 1 20 Terrain Destroyed 468 | . . . . . . . 53 15 18 . 31 79 . 11 6 . 14 53 . . 161 . 6 1 20 Melee 83 | . . . . . . . . . 9 . 18 15 . 11 6 . 4 . . . 7 . 6 1 6 Projectile . | . . . . . . . . . . . . . . . . . . . . . . . . . . AOE 385 | . . . . . . . 53 15 9 . 13 64 . . . . 10 53 . . 154 . . . 14 Terrain Rammed . | . . . . . . . . . . . . . . . . . . . . . . . . . . Walls Destroyed . | . . . . . . . . . . . . . . . . . . . . . . . . . . Machines Disabled . | . . . . . . . . . . . . . . . . . . . . . . . . . . Actions | -11 -10 -10 -10 -9 -8 -8 -8 -8 -7 -7 -7 -6 -6 -6 -5 -5 -4 -4 -4 -4 -4 -3 -2 -2 -1 --------- Run | Yrd Mat Min Exi Min Mat Gar Mat Gar Fac Was Fac Fac Was Fac Fac DSF Fac Ext Cet Arc Hub Res Res Tes Acc Total 20034 | 46 843 683 305 774 1726 627 1047 664 2929 285 2133 2196 130 660 249 62 621 1910 361 136 262 178 274 119 814 Wait 3414 | . 9 53 19 14 271 19 91 40 746 3 545 418 14 98 56 1 55 498 202 47 4 . 24 . 187 Move 15229 | 38 763 617 284 721 1307 510 861 512 1967 274 1482 1648 112 540 183 60 541 1238 141 76 245 162 236 117 594 Hop 45 | . . . . . . . . . 31 1 5 6 . . . . 1 1 . . . . . . . Pick Up 80 | . 4 5 1 1 18 4 3 13 12 1 4 8 . 2 . . 1 1 1 . . . . . 1 Fast Attach 122 | 8 13 1 . 6 20 1 13 3 20 . 9 8 . . 1 . 1 2 3 2 1 4 3 . 3 Attach 45 | . . . . . . 1 2 4 17 . 7 3 . 2 . . 2 1 1 2 . 2 . 1 . Detach 15 | . 1 . . . 1 . 1 1 3 . 3 1 . . . . 1 1 1 1 . . . . . Swap 69 | . . . . . 6 . 3 10 12 . 2 8 . . 2 . 5 12 2 . 4 . 1 . 2 Drop 158 | . 3 . 1 4 36 1 12 14 39 2 10 9 . 2 1 . 1 1 3 2 1 8 4 . 4 Fire 404 | . 48 7 . 28 67 77 60 44 33 . 3 14 4 . . . 6 8 2 2 . . . . 1 Melee 303 | . . . . . . . . 2 49 4 63 69 . 16 6 . 7 40 5 4 7 2 6 1 22 Ram . | . . . . . . . . . . . . . . . . . . . . . . . . . . Kick . | . . . . . . . . . . . . . . . . . . . . . . . . . . Crush 3 | . 2 . . . . . 1 . . . . . . . . . . . . . . . . . . Escape Stasis 142 | . . . . . . 14 . 20 . . . . . . . 1 . 107 . . . . . . . Rewire 5 | . . . . . . . . 1 . . . 4 . . . . . . . . . . . . . Trap . | . . . . . . . . . . . . . . . . . . . . . . . . . . Miscellaneous . | . . . . . . . . . . . . . . . . . . . . . . . . . . Route ------- -11/Scrapyard -10/Materials (discovered 6 exits: *Mat x3 / *Min x2 / *Sub) -10/Mines (discovered 4 exits: *Mat x2 / *Exi / Sub) -10/Exiles (discovered 2 exits: *Min x2) -9/Mines (discovered 2 exits: *Mat x2) -8/Materials (discovered 4 exits: *Fac x3 / Gar) -8/Garrison (discovered 3 exits: *Mat x3) -8/Materials (discovered 4 exits: *Fac x3 / Gar) -8/Garrison (discovered 3 exits: *Fac x3) -7/Factory (discovered 3 exits: *Fac / *Low x2) -7/Waste -7/Factory (discovered 6 exits: *Fac x4 / *Low x2) -6/Factory (discovered 5 exits: *Fac x4 / *Low) -6/Waste -6/Factory (discovered 4 exits: *Fac x4) -5/Factory (discovered 3 exits: Upp x2 / DSF) -5/DSF -4/Factory (discovered 3 exits: *Upp / *Ext x2) -4/Extension (discovered 2 exits: *Res / *Cet) -4/Cetus -4/Archives -4/Hub_04(d) (discovered 4 exits: *Res x4) -3/Research (discovered 3 exits: *Res x3) -2/Research (discovered 4 exits: Acc x3 / *Tes) -2/Testing -1/Access To Epsilon Eridani History --------- Turn | Location | Event 9 | -11/Scrapyard | Identified exit to Materials 9 | -11/Scrapyard | Discovered exit to Materials (range 15) 69 | -11/Scrapyard | Entered Materials 69 | -10/Materials | Devolved, losing -1 slots: Utility x1 290 | -10/Materials | Identified exit to Mines 290 | -10/Materials | Discovered exit to Mines (range 15) 303 | -10/Materials | Build established: Hacker-Mutant 453 | -10/Materials | Identified exit to Materials 453 | -10/Materials | Discovered exit to Materials (range 9) 597 | -10/Materials | Learned Storage stockpile data 669 | -10/Materials | Identified exit to Subcaves 780 | -10/Materials | Learned Storage emergency access door positions 1071 | -10/Materials | Learned location of 2 exits from Materials 1559 | -10/Materials | Entered Mines 1593 | -10/Mines | Build established: Hacker-Tank 1646 | -10/Mines | A weapon hastily lodged in a ceiling crevice suddenly fell to the ground 1671 | -10/Mines | Deemed a non-threat by the Exiles lab entrance 1671 | -10/Mines | Identified exit to Exiles 1671 | -10/Mines | Discovered exit to Exiles (range 5) 1829 | -10/Mines | Discovered exit to Subcaves (range 10) 1839 | -10/Mines | Learned Materials emergency access door positions 1870 | -10/Mines | Assisted by bots powering up and referring to "LRC-V3" 2013 | -10/Mines | Received a Rocket Launcher from a helpful Derelict 2069 | -10/Mines | Build established: Scavenger-Tank 2156 | -10/Mines | Entered Exiles 2156 | -10/Exiles | Accompanied by 3 allies 2157 | -10/Exiles | Identified exit to Mines 2177 | -10/Exiles | Met 8R-AWN 2190 | -10/Exiles | Met EX-HEX 2213 | -10/Exiles | Met EX-BIN 2223 | -10/Exiles | Aligned with FarCom system 2224 | -10/Exiles | Given EX-Vault access code 2242 | -10/Exiles | Opened EX-Vault 2249 | -10/Exiles | Found Longsword +1 2268 | -10/Exiles | Warned to stay clear of 0b10 Research branches 2288 | -10/Exiles | Met EX-DEC 2353 | -10/Exiles | Learned location of Zion (-6) 2404 | -10/Exiles | Left Exiles lab with Longsword +1 2404 | -10/Exiles | Entered Mines 2404 | -9/Mines | Accompanied by 3 allies 2405 | -9/Mines | Identified exit to Materials 2430 | -9/Mines | Met a Derelict bent on vengeance 2432 | -9/Mines | Received a Mining Laser from a helpful Derelict 2450 | -9/Mines | Discovered exit to Materials (range 7) 2474 | -9/Mines | Assembled infested the area 2479 | -9/Mines | Assisted by a Guerilla fighting off Assembled 2510 | -9/Mines | Lost 4 allies 2707 | -9/Mines | Build established: Scavenger-Skirmisher 2714 | -9/Mines | Found a damaged Exp. Sensor Array with a note attached 3353 | -9/Mines | Entered Materials 3353 | -8/Materials | Devolved, losing 2 slots: Propulsion x-1, Utility x-1 3354 | -8/Materials | Identified exit to Factory 3848 | -8/Materials | Learned location of 1 exit from Storage 3906 | -8/Materials | Learned Storage terminal intel 3952 | -8/Materials | Learned location of 1 exit from Recycling 4028 | -8/Materials | Learned 2 Lower Caves zone layouts 4293 | -8/Materials | Build established: Scavenger-Tank 5147 | -8/Materials | Build established: Scavenger-Gunner 5489 | -8/Materials | Identified exit to Garrison 5497 | -8/Materials | Entered Garrison 5497 | -8/Garrison | Accompanied by 2 allies 5571 | -8/Garrison | Triggered checkpoint 5607 | -8/Garrison | Installed Relay Interface Framework 5615 | -8/Garrison | Garrison Relay disabled 5701 | -8/Garrison | Triggered checkpoint 5734 | -8/Garrison | Identified exit to Materials 5734 | -8/Garrison | Discovered exit to Materials (range 58) 5734 | -8/Garrison | Discovered exit to Materials (range 71) 5734 | -8/Garrison | Discovered exit to Materials (range 30) 5734 | -8/Garrison | Learned Materials security intel 5787 | -8/Garrison | Triggered checkpoint 5871 | -8/Garrison | Triggered checkpoint 5885 | -8/Garrison | Garrison Relay disabled 6019 | -8/Garrison | Triggered checkpoint 6026 | -8/Garrison | Triggered checkpoint 6039 | -8/Garrison | Build established: Hacker-Tank 6067 | -8/Garrison | Triggered checkpoint 6103 | -8/Garrison | Destroyed 12 combat bots 6243 | -8/Garrison | Triggered checkpoint 6325 | -8/Garrison | Garrison Relay disabled 6393 | -8/Garrison | Entered Materials 6393 | -8/Materials | Accompanied by 1 ally 6666 | -8/Materials | Destroyed 7 combat bots 6712 | -8/Materials | Discovered exit to Factory (range 15) 6793 | -8/Materials | First assault squad dispatched 7178 | -8/Materials | Discovered exit to Factory (range 23) 7397 | -8/Materials | Learned 4 Lower Caves zone layouts 7450 | -8/Materials | Learned 2 Lower Caves zone layouts 7491 | -8/Materials | Learned Storage security intel 7523 | -8/Materials | Learned 4 Factory zone layouts 7546 | -8/Materials | Learned 4 Lower Caves zone layouts 7576 | -8/Materials | Learned location of 1 exit from Lower Caves 7603 | -8/Materials | Learned Factory emergency access door positions 7710 | -8/Materials | Garrison activated, responded to threat 7833 | -8/Materials | Identified exit to Garrison 7833 | -8/Materials | Entered Garrison 7833 | -8/Garrison | Accompanied by 1 ally 7867 | -8/Garrison | Triggered checkpoint 7897 | -8/Garrison | Discovered exit to Factory (range 48) 7897 | -8/Garrison | Discovered exit to Factory (range 104) 7897 | -8/Garrison | Discovered exit to Factory (range 71) 7897 | -8/Garrison | Garrison Relay disabled 7954 | -8/Garrison | Garrison Relay disabled 7976 | -8/Garrison | Expanded RIF knowledge: Signal Jamming 7977 | -8/Garrison | Triggered checkpoint 8049 | -8/Garrison | Spotted B-75 Beast 8109 | -8/Garrison | Destroyed B-75 Beast 8277 | -8/Garrison | Triggered checkpoint 8289 | -8/Garrison | Triggered checkpoint 8295 | -8/Garrison | Triggered checkpoint 8324 | -8/Garrison | Build established: Bothacker-Tank 8337 | -8/Garrison | Triggered checkpoint 8569 | -8/Garrison | Learned Factory security intel 8659 | -8/Garrison | Triggered checkpoint 8672 | -8/Garrison | Garrison Relay disabled 8717 | -8/Garrison | Entered Factory 8717 | -7/Factory | Accompanied by 5 allies 8717 | -7/Factory | Devolved, losing 1 slot: Weapon x-1 8768 | -7/Factory | Identified exit to Factory 8768 | -7/Factory | Discovered exit to Factory (range 12) 8931 | -7/Factory | Identified exit to Lower Caves 8931 | -7/Factory | Discovered exit to Lower Caves (range 63) 8943 | -7/Factory | Learned Factory emergency access door positions 9003 | -7/Factory | Build established: Wizard-Sprinter 9005 | -7/Factory | Learned 4 Factory zone layouts 9022 | -7/Factory | Learned 2 Hub_04(d) zone layouts 9049 | -7/Factory | Learned location of Warlord (-4) 9052 | -7/Factory | Fabricated Cld. VTOL Module (x1) 9098 | -7/Factory | Fabricated Cld. VTOL Module (x1) 9119 | -7/Factory | Fabricated Cld. VTOL Module (x1) 9136 | -7/Factory | Fabricated Cld. VTOL Module (x1) 9188 | -7/Factory | Fabricated Cld. VTOL Module (x1) 9203 | -7/Factory | Fabricated Cld. VTOL Module (x1) 9257 | -7/Factory | Fabricated Cld. VTOL Module (x1) 9274 | -7/Factory | Fabricated Imp. Cooling System (x2) 9295 | -7/Factory | Fabricated Imp. Propulsion Shielding (x2) 9671 | -7/Factory | Fabricated Lgt. Angular Momentum Engine (x2) 9707 | -7/Factory | Fabricated Imp. Utility Shielding (x2) 9754 | -7/Factory | Fabricated Imp. System Shield (x1) 9755 | -7/Factory | Cargo convoy interrupted 9812 | -7/Factory | Fabricated O-24 Administrator (x1) 9867 | -7/Factory | Found Prototype Launcher 9867 | -7/Factory | Identified Tesla Bomb Launcher 10051 | -7/Factory | Lost 4 allies 10164 | -7/Factory | Build established: Hacker-Sprinter 10167 | -7/Factory | Manually triggered Chute Trap 10167 | -7/Factory | Sucked down chute 10167 | -7/Factory | Entered Waste 10167 | -7/Waste | The area was eerily silent 10197 | -7/Waste | A Compactor rumbled back to life 10197 | -7/Waste | Spotted C-40 Crusher 10222 | -7/Waste | Identified exit to Factory 10222 | -7/Waste | Discovered exit to Factory (range 10) 10238 | -7/Waste | Entered Factory 10268 | -7/Factory | Discovered exit to Lower Caves (range 5) 10345 | -7/Factory | Fabricated Cld. Nuclear Pulse Thruster? 10366 | -7/Factory | Fabricated Cld. Nuclear Pulse Thruster (x1) 10426 | -7/Factory | Fabricated O-24 Administrator? 10465 | -7/Factory | Fabricated Cld. Nuclear Pulse Thruster (x1) 10561 | -7/Factory | Fabricated Cld. Nuclear Pulse Thruster? 10637 | -7/Factory | Learned location of 2 exits from Proximity Caves 10802 | -7/Factory | Fabricated M-28 Smith (x1) 10818 | -7/Factory | Learned location of Lower Caves (-7) 10844 | -7/Factory | Repaired Broken Cld. Nuclear Pulse Thruster 10849 | -7/Factory | Loaded intel: 4 scanalyzer locations 10860 | -7/Factory | Discovered exit to Lower Caves (range 13) 10933 | -7/Factory | Cargo convoy interrupted 10943 | -7/Factory | Learned location of 1 exit from Proximity Caves 10995 | -7/Factory | Learned 2 Lower Caves zone layouts 11081 | -7/Factory | Fabricated O-24 Administrator? 11277 | -7/Factory | Entered another Factory area 11277 | -6/Factory | Devolved, losing 1 slot: Weapon x-1 11278 | -6/Factory | Identified exit to Factory 11536 | -6/Factory | Identified exit to Lower Caves 11536 | -6/Factory | Discovered exit to Lower Caves (range 9) 11630 | -6/Factory | Fabricated L-41 Fighter (x3) 11701 | -6/Factory | Destroyed 8 combat bots 11706 | -6/Factory | Fabricated Exp. Utility Shielding (x1) 11790 | -6/Factory | Repaired Lgt. Fission Core 11842 | -6/Factory | Build established: Wizard-Sprinter 11898 | -6/Factory | Learned location of 2 exits from Proximity Caves 11955 | -6/Factory | Learned location of 1 exit from Lower Caves 11982 | -6/Factory | Fabricated Exp. Propulsion Shielding? 11986 | -6/Factory | Fabricated Exp. Utility Shielding (x1) 12041 | -6/Factory | Fabricated Adv. Hacking Suite (x1) 12055 | -6/Factory | Cargo convoy interrupted 12058 | -6/Factory | Loaded intel: 66 trap records 12065 | -6/Factory | Fabricated Exp. Propulsion Shielding (x1) 12073 | -6/Factory | Learned location of 1 exit from Extension 12099 | -6/Factory | Learned location of Extension (-4) 12178 | -6/Factory | Fabricated Imp. Remote Datajack (x2) 12234 | -6/Factory | Fabricated Adv. Hacking Suite (x1) 12282 | -6/Factory | Manually triggered Chute Trap 12282 | -6/Factory | Sucked down chute 12282 | -6/Factory | Entered Waste 12283 | -6/Waste | Identified exit to Factory 12287 | -6/Waste | 1 allies followed down the chute 12289 | -6/Waste | Spotted C-40 Crusher 12290 | -6/Waste | Spotted C-40 Crusher 12291 | -6/Waste | Spotted C-40 Crusher 12297 | -6/Waste | EMP discharged 12297 | -6/Waste | Spotted C-40 Crusher 12306 | -6/Waste | Spotted C-40 Crusher 12306 | -6/Waste | Spotted C-40 Crusher 12327 | -6/Waste | Entered Factory 12327 | -6/Factory | Accompanied by 1 ally 12452 | -6/Factory | Identified exit to DSF 12522 | -6/Factory | Fabricated Y-54 Guardian? 12525 | -6/Factory | Fabricated Adv. Transmission Jammer (x2) 12587 | -6/Factory | Entered another Factory area 12587 | -5/Factory | Devolved, losing 1 slot: Propulsion x-1 12588 | -5/Factory | Identified exit to Upper Caves 12648 | -5/Factory | Build established: Machinist-Sprinter 12703 | -5/Factory | Identified exit to DSF 12703 | -5/Factory | Entered DSF 12715 | -5/DSF | Identified exit to Factory 12715 | -5/DSF | Discovered exit to Factory (range 16) 12718 | -5/DSF | Entered Factory 12718 | -4/Factory | Devolved, losing 1 slot: Utility x-1 12719 | -4/Factory | Identified exit to Extension 12919 | -4/Factory | Identified exit to Upper Caves 12919 | -4/Factory | Discovered exit to Upper Caves (range 8) 12934 | -4/Factory | Entered Extension 12935 | -4/Extension | Identified exit to Cetus 12936 | -4/Extension | Identified exit to Research 12940 | -4/Extension | Disrupted transfer network 12961 | -4/Extension | Spotted B-86 Titan 13209 | -4/Extension | Rescued a captive Derelict 13210 | -4/Extension | Rescued a captive Derelict 13246 | -4/Extension | Rescued a captive Derelict 13247 | -4/Extension | Rescued a captive Derelict 13250 | -4/Extension | Rescued a captive Derelict 13255 | -4/Extension | Rescued a captive Derelict 13258 | -4/Extension | Rescued a captive Derelict 13473 | -4/Extension | Spotted B-86 Titan 13504 | -4/Extension | Rescued a captive Derelict 13505 | -4/Extension | Lost 3 allies 13505 | -4/Extension | Rescued a captive Derelict 13541 | -4/Extension | Rescued a captive Derelict 13595 | -4/Extension | Rescued A7 13597 | -4/Extension | Rescued a captive Derelict 13598 | -4/Extension | Rescued a captive Derelict 13607 | -4/Extension | Rescued a captive Derelict 13608 | -4/Extension | Rescued a captive Derelict 13763 | -4/Extension | Build established: Hacker-Sprinter 13954 | -4/Extension | Entered Cetus 13954 | -4/Cetus | Accompanied by 10 allies (A7) 13955 | -4/Cetus | Identified exit to Archives 13959 | -4/Cetus | Acquired a Cetus Manufacturing Module code from A7 13962 | -4/Cetus | Spotted Cetus Guard 13962 | -4/Cetus | Spotted Cetus Guard 13966 | -4/Cetus | Spotted Cetus Guard 13966 | -4/Cetus | Spotted Cetus Guard 13976 | -4/Cetus | Destroyed Cetus Guard 13982 | -4/Cetus | Allies destroyed Cetus Guard 13986 | -4/Cetus | Allies destroyed Cetus Guard 14038 | -4/Cetus | Started Cetus Manufacturing Module 14048 | -4/Cetus | Escorted A7 to Cetus Mainframe 14063 | -4/Cetus | Manufactured an Enhanced Grunt 14088 | -4/Cetus | Manufactured an Enhanced Grunt 14113 | -4/Cetus | Manufactured an Enhanced Grunt 14138 | -4/Cetus | Manufactured an Enhanced Grunt 14163 | -4/Cetus | Manufactured an Enhanced Grunt 14218 | -4/Cetus | Entered Archives 14218 | -4/Archives | Accompanied by 14 allies (A7) 14223 | -4/Archives | Received a hacking code to weaken MAIN.C 14260 | -4/Archives | Identified exit to Hub_04(d) 14260 | -4/Archives | Discovered exit to Hub_04(d) (range 14) 14297 | -4/Archives | Entered Hub_04(d) 14297 | -4/Hub_04(d) | Accompanied by 14 allies 14303 | -4/Hub_04(d) | Network Hub disabled 14330 | -4/Hub_04(d) | Spotted Lightning 14356 | -4/Hub_04(d) | Network Hub disabled 14356 | -4/Hub_04(d) | Spotted Lightning 14383 | -4/Hub_04(d) | Entered Research 14383 | -3/Research | Accompanied by 1 ally 14383 | -3/Research | Devolved, losing 1 slot: Propulsion x-1 14394 | -3/Research | Lost 3 allies 14403 | -3/Research | Identified exit to Research 14452 | -3/Research | Entered another Research area 14452 | -2/Research | Devolved, losing 1 slot: Weapon x-1 14486 | -2/Research | Spotted B-90 Cyclops 14488 | -2/Research | Identified exit to Access 14540 | -2/Research | Identified exit to Testing 14540 | -2/Research | Discovered exit to Testing (range 9) 14596 | -2/Research | Entered Testing 14597 | -2/Testing | Maximum security lockdown engaged 14648 | -2/Testing | Discovered exit to Access (range 3) 14649 | -2/Testing | Entered Access 14649 | -1/Access | Devolved, losing 1 slot: Utility x-1 14697 | -1/Access | Fabricated M-28 Smith (x1) 14899 | -1/Access | First assault squad dispatched 14964 | -1/Access | Identified exit to Surface 14968 | -1/Access | Build established: Hacker-Mutant 14982 | -1/Access | Fabricated Y-54 Guardian? 15012 | -1/Access | Fabricated Y-54 Guardian (x2) 15108 | -1/Access | Lost 3 allies 15154 | *** | Escaped! Last Messages --------------- 15058_ S-43 Plague destroyed. 15062_ The unstable cave ceiling collapses. 15063_ Acquired 14 matter. 15063_ Acquired 90 matter. 15073_ Guardian 10b destroyed. 15077_ Guardian 10d system terminally corrupted. 15077_ The unstable cave ceiling collapses. 15078_ P-80 Master Imp. Antigrav System severed. 15080_ P-80 Master destroyed. 15083_ Destroyed Gamma Rifle. 15083_ Adv. Target Analyzer melted. 15083_ P-80 Master destroyed. 15085_ Acquired 33 matter. 15091_ Connecting with Terminal... >>Open(Door) Sealed Barrier opened. 15093_ The Access Shell folds into the floor. 15149_ ALERT: Significant disruption in Zone 5G, assault force dispatched. [Achievement: Grand Amoeba] Map ----- +----------------------------------------------------+ | ?????????????????????????????????????????????????? | | ?????????????????????????????????????????????????? | | ?????????????????????????????????????????????????? | | ?????????????????????????????????????????????????? | | ?????????????????????????????????????????????????? | | ?????????????????????????????????????????????????? | | ?????????????????????????????????????????????????? | | ?????????????????????????????????????????????????? | | ?????????????????????????????????????????????????? | | ?????????????????????????????????????????????????? | | ?????????????????????????????????????????????????? | | ?????????????????????????????????????????????????? | | ?????????????????????????????????????????????????? | | ?????????????????????????????????????? # ???????? | | ?????????????????????????????????????? # ???????? | | ?????????????????????????????????????? + ???????? | | ?????????????????????????????????????? # ???????? | | ?????????????????????????????????????? # ???????? | | ????????????????????????????#####????? ##???????? | | ???????????????????################### ##???????? | | ???????????????????########### ####### ##???????? | | ???????????????????"" ##???????? | | ??????????????BB????" ##???????? | | ??????????????BB????" ##???????? | | ????????????????????" ##???????? | | ????????????????????" "@ Y ##???????? | | ????????????????????" "" ##???????? | | ????????????????????" ##???????? | | ??????????????BB????" ##???????? | | ??????????????BB????" """ """ ##???????? | | ???????????????????"" """T""" ##???????? | | ???????????????????########### ####### ##???????? | | ???? ############################### ##???????? | | ???? ############################### ##???????? | | ??? ### ## # ##???????? | | ??? ### ## #|!##???????? | | ??? ### ## #[%##???????? | | ??? ### " ## #!!##???????? | | ? # ### """ ## ! #%[##???????? | | ### ### """## ! #=*##???????? | | ### ### " ## #=|##???????? | | ### ### ## = #!=##???????? | | # # ## = # # ?????? # | | # ###+##+#############+##### * # # | | # ########### %% ""# | | + ########### [%= # ""# | | # ########### %* Y"# | | # """ """ % = ""# | | # """"""" ###### ###### # ""? | | # """"""" ###### ###### ### # | +----------------------------------------------------+ Best States ------------- Heat Dissipation 58 Energy Generation 25 Energy Capacity 350 Matter Stores 300 Matter Capacity 300 Sight Range 23 Terrain Scan Range 16 Terrain Scan Density 235 Jamming Range 16 Cloak Strength 3 Power Amplification 20 Additional Mass Support 12 Armor Coverage 600 Resistance: KI 35 Resistance: TH 35 Resistance: EX 35 Resistance: EM 35 Resistance: I 35 Resistance: S 35 Resistance: P 35 Core Shielding 20 Propulsion Shielding 90 Utility Shielding 90 Evasion (%) 74 Targeting Accuracy 10 Recoil Reduction 4 Kinecelleration 30 Offensive Hacking 60 Defensive Hacking 22 Relay Coupler Types 1 Relay Coupler Value 46 Item Schematics ----------------- Lgt. Angular Momentum Engine | -8/Materials | Scanalyzed Med. Storage Unit | -8/Materials | Hacked Imp. Propulsion Shielding | -8/Materials | Hacked System Shield | -8/Materials | Scanalyzed Hacking Suite | -8/Materials | Scanalyzed Recoil Stabilizer | -8/Materials | Extracted Sml. Battery | -8/Materials | Extracted Titanium Leg | -8/Materials | Extracted Hrd. Light Armor Plating | -8/Materials | Extracted Med. Battery | -8/Materials | Extracted Target Analyzer | -8/Materials | Extracted Beam Cannon | -8/Materials | Extracted Cld. VTOL Module | -7/Factory | Hacked Imp. System Shield | -7/Factory | Hacked Imp. Cooling System | -7/Factory | Hacked Neutrino Core | -7/Factory | Hacked Imp. Utility Shielding | -7/Factory | Hacked Salvage Targeting Computer | -7/Factory | Extracted EM Pulse Cannon | -7/Factory | Extracted Ion Cannon | -7/Factory | Extracted Adv. Treads | -7/Factory | Extracted Lgt. EM Pulse Cannon | -7/Factory | Extracted Prc. Beam Rifle | -7/Factory | Extracted Imp. Carbon-fiber Leg | -7/Factory | Extracted Com. Wheel | -7/Factory | Extracted Katana | -7/Factory | Extracted Component Analysis Suite | -7/Factory | Extracted Carbon-fiber Leg | -7/Factory | Extracted Mni. Assault Cannon | -7/Factory | Extracted Cld. Nuclear Pulse Thruster | -7/Factory | Scanalyzed Lgt. Fission Core | -7/Factory | Scanalyzed Flak Gun | -7/Factory | Extracted Arm. Huge Wheel | -7/Factory | Extracted Hvy. EM Pulse Gun | -7/Factory | Extracted Imp. Field Recycling Unit | -7/Factory | Extracted Imp. Titanium Leg | -7/Factory | Extracted Sml. Storage Unit | -7/Factory | Extracted Lrn. Missile Launcher | -6/Factory | Scanalyzed Gravity Neutralizer | -6/Factory | Scanalyzed Structural Scanner | -6/Factory | Scanalyzed Exp. Optical Array | -6/Factory | Scanalyzed Reaction Control System | -6/Factory | Scanalyzed Imp. Heat Sink | -6/Factory | Scanalyzed Exp. Utility Shielding | -6/Factory | Hacked Plasma Cutter | -6/Factory | Hacked Exp. Propulsion Shielding | -6/Factory | Hacked Adv. Hacking Suite | -6/Factory | Hacked Imp. Remote Datajack | -6/Factory | Hacked Adv. Transmission Jammer | -6/Factory | Hacked Q-thruster | -4/Extension | Hacked Robot Schematics ------------------ O-24 Administrator | -7/Factory | Hacked Y-54 Guardian | -7/Factory | Hacked M-28 Smith | -7/Factory | Hacked Fabricated ------------ Cld. VTOL Module | x1 | -7/Factory Cld. VTOL Module | x1 | -7/Factory Cld. VTOL Module | x1 | -7/Factory Cld. VTOL Module | x1 | -7/Factory Cld. VTOL Module | x1 | -7/Factory Cld. VTOL Module | x1 | -7/Factory Cld. VTOL Module | x1 | -7/Factory Imp. Cooling System | x2 | -7/Factory Imp. Propulsion Shielding | x2 | -7/Factory Lgt. Angular Momentum Engine | x2 | -7/Factory Imp. Utility Shielding | x2 | -7/Factory Imp. System Shield | x1 | -7/Factory O-24 Administrator | x1 | -7/Factory Cld. Nuclear Pulse Thruster | x1 | -7/Factory Cld. Nuclear Pulse Thruster | x1 | -7/Factory O-24 Administrator | x1 | -7/Factory Cld. Nuclear Pulse Thruster | x1 | -7/Factory Cld. Nuclear Pulse Thruster | x1 | -7/Factory M-28 Smith | x1 | -7/Factory O-24 Administrator | x1 | -7/Factory | Preloaded L-41 Fighter | x3 | -6/Factory | Preloaded Exp. Utility Shielding | x1 | -6/Factory Exp. Propulsion Shielding | x1 | -6/Factory Exp. Utility Shielding | x1 | -6/Factory Adv. Hacking Suite | x1 | -6/Factory Exp. Propulsion Shielding | x1 | -6/Factory Imp. Remote Datajack | x2 | -6/Factory Adv. Hacking Suite | x1 | -6/Factory Y-54 Guardian | x2 | -6/Factory Adv. Transmission Jammer | x2 | -6/Factory M-28 Smith | x1 | -1/Access Y-54 Guardian | x2 | -1/Access Y-54 Guardian | x2 | -1/Access Alien Tech Used ----------------- None Achievements -------------- Grand Amoeba Challenges ------------ Devolution Game ------ Seed XenonGammaCorpse Manual? 0 Play Time 04:48:16 Cumulative 540.2 hours Start 2024.11.05 @ 08:11:16 End 2024.11.05 @ 13:04:57 Sessions 1 Manual Loads 0 Difficulty Explorer Special Mode None Game No. 81 Rogue 6 Adventurer 6 Explorer 69 Win Type 0 Total 37 Types 14/7/2/5/1/1/1/4/2 Lore% 86 Gallery% 86 Achievement% 90 Wizard Run 0 Options --------- Layout 1 ASCII 0 Keyboard 0 Movement Mouse Keybinds 0 Fullscreen 1 Font 24/Smallcaps Map View 50x35 Zoom Use 0% Tactical HUD 1 Map Filters NONE Filters NONE Steam 1 RUN: ebbad154-131a-4380-8d16-b1bbcff68dfe